fUSD/lending_fUSD_20240412
["ID","MTS","AMOUNT","RATE_DAILY","PERIOD"]
[322248417,1712913052215,-500.0,0.00027945,2]
[322248418,1712913052228,-500.0,0.00027945,2]
[322248419,1712913052239,-500.0,0.00027945,2]
[322248420,1712913052250,-500.0,0.00027945,2]
[322248421,1712913052262,-500.0,0.00027945,2]
[322248422,1712913052276,-500.0,0.00027945,2]
[322248423,1712913052288,-500.0,0.00027945,2]
[322248424,1712913052301,-500.0,0.00027945,2]
[322248425,1712913052314,-500.0,0.00027945,2]
[322248426,1712913052324,-500.0,0.00027945,2]
[322248427,1712913052336,-500.0,0.00027945,2]
[322248428,1712913052349,-500.0,0.00027945,2]
[322248429,1712913052361,-500.0,0.00027945,2]
[322248430,1712913052373,-150.0,0.00027945,2]
[322248431,1712913052386,-500.0,0.00027945,2]
[322248432,1712913052397,-500.0,0.00027945,2]
[322248433,1712913052409,-500.0,0.00027945,2]
[322248434,1712913052419,-500.0,0.00027945,2]
[322248435,1712913052431,-500.0,0.00027945,2]
[322248436,1712913052443,-522.3,0.00027945,2]
[322248437,1712913052453,-369.12493163,0.00027945,2]
[322248438,1712913052463,-500.0,0.00027945,2]
[322248439,1712913052472,-500.0,0.00027945,2]
[322248440,1712913052483,-500.0,0.00027945,2]
[322248441,1712913052492,-500.0,0.00027945,2]
[322248442,1712913052502,-500.0,0.00027945,2]
[322248443,1712913052512,-500.0,0.00027945,2]
[322248444,1712913052522,-500.0,0.00027945,2]
[322248445,1712913052533,-500.0,0.00027945,2]
[322248446,1712913052543,-500.0,0.00027945,2]
[322248447,1712913052553,-500.0,0.00027945,2]
[322248448,1712913052564,-500.0,0.00027945,2]
[322248449,1712913052574,-500.0,0.00027945,2]
[322248450,1712913052586,-500.0,0.00027945,2]
[322248451,1712913052598,-595.67,0.00027945,2]
[322248452,1712913052608,-500.0,0.00027945,2]
[322248453,1712913052618,-500.0,0.00027945,2]
[322248454,1712913052629,-554.42,0.00027945,2]
[322248455,1712913052640,-500.0,0.00027945,2]
[322248456,1712913052650,-500.0,0.00027945,2]
[322248457,1712913052659,-500.0,0.00027945,2]
[322248458,1712913052669,-500.0,0.00027945,2]
[322248459,1712913052680,-500.0,0.00027945,2]
[322248460,1712913052689,-500.0,0.00027945,2]
[322248461,1712913052700,-500.0,0.00027945,2]
[322248462,1712913052709,-500.0,0.00027945,2]
[322248463,1712913052719,-175.52755882,0.00027945,2]
[322248464,1712913052730,-500.0,0.00027945,2]
[322248465,1712913052739,-500.0,0.00027945,2]
[322248466,1712913052748,-1693.89,0.00027945,2]
[322248467,1712913052759,-500.0,0.00027945,2]
[322248468,1712913052768,-500.0,0.00027945,2]
[322248469,1712913052778,-1344.19,0.00027945,2]
[322248470,1712913052789,-500.0,0.00027945,2]
[322248471,1712913052800,-500.0,0.00027945,2]
[322248472,1712913052809,-525.80070407,0.00027945,2]
[322248473,1712913052819,-500.0,0.00027945,2]
[322248474,1712913052828,-500.0,0.00027945,2]
[322248475,1712913052841,-557.5,0.00027945,2]
[322248476,1712913052853,-500.0,0.00027945,2]
[322248477,1712913052865,-500.0,0.00027945,2]
[322248478,1712913052877,-500.0,0.00027945,2]
[322248479,1712913052888,-500.0,0.00027945,2]
[322248480,1712913052898,-1426.98,0.00027945,2]
[322248481,1712913052910,-500.0,0.00027945,2]
[322248482,1712913052922,-500.0,0.00027945,2]
[322248483,1712913052934,-500.0,0.00027945,2]
[322248484,1712913052946,-613.24,0.00027945,2]
[322248485,1712913052955,-465.78350723,0.00027945,2]
[322248486,1712913052966,-183.37310435,0.00027945,2]
[322248487,1712913052977,-500.0,0.00027945,2]
[322248488,1712913052989,-4902.69,0.00027945,2]
[322248489,1712913053000,-500.0,0.00027945,2]
[322248490,1712913053009,-500.0,0.00027945,2]
[322248491,1712913053018,-589.66,0.00027945,2]
[322248492,1712913053027,-500.0,0.00027945,2]
[322248493,1712913053037,-500.0,0.00027945,2]
[322248494,1712913053046,-500.0,0.00027945,2]
[322248495,1712913053056,-500.0,0.00027945,2]
[322248496,1712913053065,-500.0,0.00027945,2]
[322248497,1712913053074,-500.0,0.00027945,2]
[322248498,1712913053083,-500.0,0.00027945,2]
[322248499,1712913053093,-500.0,0.00027945,2]
[322248500,1712913053102,-401.16513337,0.00027945,2]
[322248501,1712913053111,-500.0,0.00027945,2]
[322248502,1712913053121,-500.0,0.00027945,2]
[322248503,1712913053132,-783.37,0.00027945,2]
[322248504,1712913053144,-500.0,0.00027945,2]
[322248505,1712913053157,-487.89365558,0.00027945,2]
[322248506,1712913053168,-500.0,0.00027945,2]
[322248507,1712913053180,-500.0,0.00027945,2]
[322248508,1712913053191,-500.0,0.00027945,2]
[322248509,1712913053201,-500.0,0.00027945,2]
[322248510,1712913053213,-500.0,0.00027945,2]
[322248511,1712913053223,-500.0,0.00027945,2]
[322248512,1712913053232,-1116.46,0.00027945,2]
[322248513,1712913053243,-942.27,0.00027945,2]
[322248514,1712913053253,-500.0,0.00027945,2]
[322248515,1712913053264,-500.0,0.00027945,2]
[322248516,1712913053274,-500.0,0.00027945,2]
[322248517,1712913053285,-500.0,0.00027945,2]
[322248518,1712913053295,-1102.09,0.00027945,2]
[322248519,1712913053305,-383.9315534,0.00027945,2]
[322248520,1712913053318,-500.0,0.00027945,2]
[322248521,1712913053328,-190.2925576,0.00027945,2]
[322248522,1712913053338,-724.59,0.00027945,2]
[322248523,1712913053350,-500.0,0.00027945,2]
[322248524,1712913053361,-500.0,0.00027945,2]
[322248525,1712913053373,-6220.28,0.00027945,2]
[322248526,1712913053385,-710.01,0.00027945,2]
[322248527,1712913053396,-500.0,0.00027945,2]
[322248528,1712913053407,-538.07840635,0.00027945,2]
[322248529,1712913053418,-500.0,0.00027945,2]
[322248530,1712913053428,-500.0,0.00027945,2]
[322248531,1712913053439,-500.0,0.00027945,2]
[322248532,1712913053450,-500.0,0.00027945,2]
[322248533,1712913053459,-500.0,0.00027945,2]
[322248534,1712913053470,-500.0,0.00027945,2]
[322248535,1712913053480,-500.0,0.00027945,2]
[322248536,1712913053490,-652.05,0.00027945,2]
[322248537,1712913053501,-500.0,0.00027945,2]
[322248538,1712913053510,-500.0,0.00027945,2]
[322248539,1712913053520,-1053.91,0.00027945,2]
[322248540,1712913053529,-2583.5,0.00027945,2]
[322248541,1712913053538,-2164.81,0.00027945,2]
[322248542,1712913053548,-500.0,0.00027945,2]
[322248543,1712913053558,-500.0,0.00027945,2]
[322248544,1712913053569,-500.0,0.00027945,2]
[322248545,1712913053579,-500.0,0.00027945,2]
[322248546,1712913053589,-500.0,0.00027945,2]
[322248547,1712913053602,-500.0,0.00027945,2]
[322248548,1712913053613,-500.0,0.00027945,2]
[322248549,1712913053624,-1027.51,0.00027945,2]
[322248550,1712913053635,-500.0,0.00027945,2]
[322248551,1712913053648,-2080.21,0.00027945,2]
[322248552,1712913053658,-1105.7,0.00027945,2]
[322248553,1712913053669,-500.0,0.00027945,2]
[322248554,1712913053681,-1530.77,0.00027945,2]
[322248555,1712913053693,-1722.55,0.00027945,2]
[322248556,1712913053703,-583.55,0.00027945,2]
[322248557,1712913053713,-500.0,0.00027945,2]
[322248558,1712913053722,-500.0,0.00027945,2]
[322248559,1712913053731,-1217.73,0.00027945,2]
[322248560,1712913053741,-11130.2,0.00027945,2]
[322248561,1712913053750,-821.08,0.00027945,2]
[322248562,1712913053760,-500.0,0.00027945,2]
[322248563,1712913053770,-500.0,0.00027945,2]
[322248564,1712913053779,-500.0,0.00027945,2]
[322248565,1712913053789,-1938.7,0.00027945,2]
[322248566,1712913053799,-611.78893873,0.00027945,2]
[322248567,1712913053809,-500.0,0.00027945,2]
[322248568,1712913053820,-500.0,0.00027945,2]
[322248569,1712913053831,-930.87,0.00027945,2]
[322248570,1712913053842,-2176.5,0.00027945,2]
[322248571,1712913053851,-500.0,0.00027945,2]
[322248572,1712913053861,-500.0,0.00027945,2]
[322248573,1712913053871,-450.36253168,0.00027945,2]
[322248574,1712913053881,-551.46,0.00027945,2]
[322248575,1712913053891,-2252.47,0.00027945,2]
[322248576,1712913053900,-500.0,0.00027945,2]
[322248577,1712913053910,-500.0,0.00027945,2]
[322248578,1712913053919,-500.0,0.00027945,2]
[322248579,1712913053929,-500.0,0.00027945,2]
[322248580,1712913053938,-1111.76,0.00027945,2]
[322248581,1712913053947,-621.09,0.00027945,2]
[322248582,1712913053957,-779.64,0.00027945,2]
[322248583,1712913053966,-1124.57,0.00027945,2]
[322248584,1712913053976,-500.0,0.00027945,2]
[322248585,1712913053985,-585.94250343,0.00027945,2]
[322248586,1712913053994,-500.0,0.00027945,2]
[322248587,1712913054004,-500.0,0.00027945,2]
[322248588,1712913054013,-500.0,0.00027945,2]
[322248589,1712913054023,-914.69,0.00027945,2]
[322248590,1712913054032,-925.11,0.00027945,2]
[322248591,1712913054041,-1311.53,0.00027945,2]
[322248592,1712913054050,-888.39,0.00027945,2]
[322248593,1712913054059,-500.0,0.00027945,2]
[322248594,1712913054070,-742.51,0.00027945,2]
[322248595,1712913054078,-500.0,0.00027945,2]
[322248596,1712913054087,-500.0,0.00027945,2]
[322248597,1712913054097,-500.0,0.00027945,2]
[322248598,1712913054106,-500.0,0.00027945,2]
[322248599,1712913054115,-1305.4,0.00027945,2]
[322248600,1712913054124,-1858.46,0.00027945,2]
[322248601,1712913054133,-844.56,0.00027945,2]
[322248602,1712913054142,-510.32,0.00027945,2]
[322248603,1712913054151,-500.0,0.00027945,2]
[322248604,1712913054161,-920.2,0.00027945,2]
[322248605,1712913054170,-500.0,0.00027945,2]
[322248606,1712913054180,-500.0,0.00027945,2]
[322248607,1712913054189,-1490.11,0.00027945,2]
[322248608,1712913054198,-500.0,0.00027945,2]
[322248609,1712913054209,-662.41,0.00027945,2]
[322248610,1712913054218,-500.0,0.00027945,2]
[322248611,1712913054227,-663.55,0.00027945,2]
[322248612,1712913054237,-500.0,0.00027945,2]
[322248613,1712913054246,-500.0,0.00027945,2]
[322248614,1712913054254,-178.06575483,0.00027945,2]
[322248615,1712913054264,-688.0,0.00027945,2]
[322248616,1712913054274,-564.81818859,0.00027945,2]
[322248617,1712913054283,-500.0,0.00027945,2]
[322248618,1712913054293,-4281.14,0.00027945,2]
[322248619,1712913054303,-500.0,0.00027945,2]
[322248620,1712913054312,-500.0,0.00027945,2]
[322248621,1712913054323,-500.0,0.00027945,2]
[322248622,1712913054331,-684.9,0.00027945,2]
[322248623,1712913054340,-154.20406454,0.00027961,2]
[322248624,1712913054349,-20180.30698704,0.00028,2]
[322248625,1712913054358,-161.39214039,0.00028158,2]
[322248626,1712913054367,-500.0,0.00028218,2]
[322248627,1712913054377,-500.0,0.00028219,2]
[322248628,1712913054386,-500.0,0.00028219,2]
[322248629,1712913054396,-500.0,0.00028219,2]
[322248630,1712913054405,-338.07196015,0.00028219,2]
[322248631,1712913054415,-500.0,0.00028219,2]
[322248632,1712913054424,-500.0,0.00028219,2]
[322248633,1712913054433,-500.0,0.00028219,2]
[322248634,1712913054443,-500.0,0.00028219,2]
[322248635,1712913054452,-500.0,0.00028219,2]
[322248636,1712913054462,-500.0,0.00028219,2]
[322248637,1712913054471,-500.0,0.00028219,2]
[322248638,1712913054481,-500.0,0.00028219,2]
[322248639,1712913054490,-376.97,0.00028219,2]
[322248640,1712913054499,-500.0,0.00028219,2]
[322248641,1712913054509,-500.0,0.00028219,2]
[322248642,1712913054518,-170.32345175,0.00028219,2]
[322248643,1712913054528,-500.0,0.00028219,2]
[322248644,1712913054537,-500.0,0.00028219,2]
[322248645,1712913054548,-500.0,0.00028219,2]
[322248646,1712913054558,-500.0,0.00028219,2]
[322248647,1712913054713,-500.0,0.00028219,2]
[322248648,1712913054724,-500.0,0.00028219,2]
[322248649,1712913054734,-500.0,0.00028219,2]
[322248650,1712913054744,-500.0,0.00028219,2]
[322248651,1712913054753,-500.0,0.00028219,2]
[322248652,1712913054763,-500.0,0.00028219,2]
[322248653,1712913054774,-500.0,0.00028219,2]
[322248654,1712913054783,-500.0,0.00028219,2]
[322248655,1712913054793,-500.0,0.00028219,2]
[322248656,1712913054804,-500.0,0.00028219,2]
[322248657,1712913054813,-500.0,0.00028219,2]
[322248658,1712913054824,-500.0,0.00028219,2]
[322248659,1712913054834,-500.0,0.00028219,2]
[322248660,1712913054844,-500.0,0.00028219,2]
[322248661,1712913054853,-500.0,0.00028219,2]
[322248662,1712913054865,-500.0,0.00028219,2]
[322248663,1712913054874,-500.0,0.00028219,2]
[322248664,1712913054883,-500.0,0.00028219,2]
[322248665,1712913054892,-500.0,0.00028219,2]
[322248666,1712913054901,-500.0,0.00028219,2]
[322248667,1712913054911,-500.0,0.00028219,2]
[322248668,1712913054920,-500.0,0.00028219,2]
[322248669,1712913054931,-500.0,0.00028219,2]
[322248670,1712913054941,-500.0,0.00028219,2]
[322248671,1712913054952,-500.0,0.00028219,2]
[322248672,1712913054963,-500.0,0.00028219,2]
[322248673,1712913054974,-500.0,0.00028219,2]
[322248674,1712913054984,-500.0,0.00028219,2]
[322248675,1712913054994,-500.0,0.00028219,2]
[322248676,1712913055004,-500.0,0.00028219,2]
[322248677,1712913055013,-500.0,0.00028219,2]
[322248678,1712913055023,-500.0,0.00028219,2]
[322248679,1712913055034,-500.0,0.00028219,2]
[322248680,1712913055045,-500.0,0.00028219,2]
[322248681,1712913055055,-324.3114054,0.00028219,2]
[322248682,1712913055066,-500.0,0.00028219,2]
[322248683,1712913055076,-388.47613172,0.00028219,2]
[322248684,1712913055087,-500.0,0.00028219,2]
[322248685,1712913055098,-500.0,0.00028219,2]
[322248686,1712913055108,-500.0,0.00028219,2]
[322248687,1712913055118,-150.0,0.00028219,2]
[322248688,1712913055128,-500.0,0.00028219,2]
[322248689,1712913055137,-500.0,0.00028219,2]
[322248690,1712913055146,-500.0,0.00028219,2]
[322248691,1712913055154,-454.82966811,0.00028219,2]
[322248692,1712913055163,-500.0,0.00028219,2]
[322248693,1712913055173,-522.3,0.00028219,2]
[322248694,1712913055182,-356.13864489,0.00028219,2]
[322248695,1712913055191,-500.0,0.00028219,2]
[322248696,1712913055200,-500.0,0.00028219,2]
[322248697,1712913055209,-500.0,0.00028219,2]
[322248698,1712913055218,-500.0,0.00028219,2]
[322248699,1712913055227,-500.0,0.00028219,2]
[322248700,1712913055236,-500.0,0.00028219,2]
[322248701,1712913055246,-500.0,0.00028219,2]
[322248702,1712913055255,-500.0,0.00028219,2]
[322248703,1712913055263,-500.0,0.00028219,2]
[322248704,1712913055273,-500.0,0.00028219,2]
[322248705,1712913055282,-500.0,0.00028219,2]
[322248706,1712913055291,-500.0,0.00028219,2]
[322248707,1712913055300,-595.67,0.00028219,2]
[322248708,1712913055309,-500.0,0.00028219,2]
[322248709,1712913055319,-500.0,0.00028219,2]
[322248710,1712913055328,-554.42,0.00028219,2]
[322248711,1712913055337,-500.0,0.00028219,2]
[322248712,1712913055346,-500.0,0.00028219,2]
[322248713,1712913055356,-500.0,0.00028219,2]
[322248714,1712913055365,-500.0,0.00028219,2]
[322248715,1712913055374,-500.0,0.00028219,2]
[322248716,1712913055383,-500.0,0.00028219,2]
[322248717,1712913055392,-500.0,0.00028219,2]
[322248718,1712913055401,-583.05877,0.00028219,2]
[322248719,1712913055410,-500.0,0.00028219,2]
[322248720,1712913055420,-500.0,0.00028219,2]
[322248721,1712913055429,-1693.89,0.00028219,2]
[322248722,1712913055438,-500.0,0.00028219,2]
[322248723,1712913055446,-206.54820658,0.00028219,2]
[322248724,1712913055456,-1344.19,0.00028219,2]
[322248725,1712913055466,-500.0,0.00028219,2]
[322248726,1712913055475,-500.0,0.00028219,2]
[322248727,1712913055485,-500.0,0.00028219,2]
[322248728,1712913055496,-500.0,0.00028219,2]
[322248729,1712913055505,-557.5,0.00028219,2]
[322248730,1712913055516,-500.0,0.00028219,2]
[322248731,1712913055527,-500.0,0.00028219,2]
[322248732,1712913055536,-500.0,0.00028219,2]
[322248733,1712913055546,-500.0,0.00028219,2]
[322248734,1712913055556,-1426.98,0.00028219,2]
[322248735,1712913055566,-500.0,0.00028219,2]
[322248736,1712913055576,-500.0,0.00028219,2]
[322248737,1712913055586,-500.0,0.00028219,2]
[322248738,1712913055597,-613.24,0.00028219,2]
[322248739,1712913055608,-500.0,0.00028219,2]
[322248740,1712913055617,-4902.69,0.00028219,2]
[322248741,1712913055627,-500.0,0.00028219,2]
[322248742,1712913055638,-500.0,0.00028219,2]
[322248743,1712913055648,-589.66,0.00028219,2]
[322248744,1712913055659,-500.0,0.00028219,2]
[322248745,1712913055672,-500.0,0.00028219,2]
[322248746,1712913055683,-500.0,0.00028219,2]
[322248747,1712913055694,-500.0,0.00028219,2]
[322248748,1712913055705,-500.0,0.00028219,2]
[322248749,1712913055715,-500.0,0.00028219,2]
[322248750,1712913055726,-500.0,0.00028219,2]
[322248751,1712913055739,-500.0,0.00028219,2]
[322248752,1712913055749,-500.0,0.00028219,2]
[322248753,1712913055760,-500.0,0.00028219,2]
[322248754,1712913055771,-783.37,0.00028219,2]
[322248755,1712913055781,-500.0,0.00028219,2]
[322248756,1712913055792,-500.0,0.00028219,2]
[322248757,1712913055804,-500.0,0.00028219,2]
[322248758,1712913055814,-369.44011364,0.00028219,2]
[322248759,1712913055824,-500.0,0.00028219,2]
[322248760,1712913055834,-500.0,0.00028219,2]
[322248761,1712913055844,-500.0,0.00028219,2]
[322248762,1712913055854,-1116.46,0.00028219,2]
[322248763,1712913055865,-500.0,0.00028219,2]
[322248764,1712913055876,-500.0,0.00028219,2]
[322248765,1712913055888,-942.27,0.00028219,2]
[322248766,1712913055900,-500.0,0.00028219,2]
[322248767,1712913055911,-500.0,0.00028219,2]
[322248768,1712913055922,-1102.09,0.00028219,2]
[322248769,1712913055934,-500.0,0.00028219,2]
[322248770,1712913055945,-724.59,0.00028219,2]
[322248771,1712913055955,-500.0,0.00028219,2]
[322248772,1712913055966,-500.0,0.00028219,2]
[322248773,1712913055976,-6220.28,0.00028219,2]
[322248774,1712913055987,-710.01,0.00028219,2]
[322248775,1712913055998,-500.0,0.00028219,2]
[322248776,1712913056010,-500.0,0.00028219,2]
[322248777,1712913056020,-500.0,0.00028219,2]
[322248778,1712913056031,-500.0,0.00028219,2]
[322248779,1712913056042,-500.0,0.00028219,2]
[322248780,1712913056054,-500.0,0.00028219,2]
[322248781,1712913056067,-500.0,0.00028219,2]
[322248782,1712913056077,-500.0,0.00028219,2]
[322248783,1712913056087,-652.05,0.00028219,2]
[322248784,1712913056096,-500.0,0.00028219,2]
[322248785,1712913056106,-500.0,0.00028219,2]
[322248786,1712913056115,-1053.91,0.00028219,2]
[322248787,1712913056125,-2583.5,0.00028219,2]
[322248788,1712913056134,-2164.81,0.00028219,2]
[322248789,1712913056145,-500.0,0.00028219,2]
[322248790,1712913056155,-500.0,0.00028219,2]
[322248791,1712913056166,-500.0,0.00028219,2]
[322248792,1712913056175,-500.0,0.00028219,2]
[322248793,1712913056186,-500.0,0.00028219,2]
[322248794,1712913056196,-500.0,0.00028219,2]
[322248795,1712913056206,-500.0,0.00028219,2]
[322248796,1712913056218,-1027.51,0.00028219,2]
[322248797,1712913056227,-500.0,0.00028219,2]
[322248798,1712913056238,-2080.21,0.00028219,2]
[322248799,1712913056247,-1105.7,0.00028219,2]
[322248800,1712913056257,-500.0,0.00028219,2]
[322248801,1712913056267,-1722.55,0.00028219,2]
[322248802,1712913056277,-1530.77,0.00028219,2]
[322248803,1712913056289,-583.55,0.00028219,2]
[322248804,1712913056301,-500.0,0.00028219,2]
[322248805,1712913056311,-500.0,0.00028219,2]
[322248806,1712913056326,-1217.73,0.00028219,2]
[322248807,1712913056336,-11130.2,0.00028219,2]
[322248808,1712913056347,-821.08,0.00028219,2]
[322248809,1712913056358,-500.0,0.00028219,2]
[322248810,1712913056369,-500.0,0.00028219,2]
[322248811,1712913056383,-500.0,0.00028219,2]
[322248812,1712913056396,-1938.7,0.00028219,2]
[322248813,1712913056410,-500.0,0.00028219,2]
[322248814,1712913056422,-500.0,0.00028219,2]
[322248815,1712913056433,-930.87,0.00028219,2]
[322248816,1712913056445,-2176.5,0.00028219,2]
[322248817,1712913056456,-500.0,0.00028219,2]
[322248818,1712913056465,-500.0,0.00028219,2]
[322248819,1712913056477,-551.46,0.00028219,2]
[322248820,1712913056489,-2252.47,0.00028219,2]
[322248821,1712913056500,-500.0,0.00028219,2]
[322248822,1712913056511,-500.0,0.00028219,2]
[322248823,1712913056523,-500.0,0.00028219,2]
[322248824,1712913056533,-500.0,0.00028219,2]
[322248825,1712913056542,-1111.76,0.00028219,2]
[322248826,1712913056552,-621.09,0.00028219,2]
[322248827,1712913056561,-779.64,0.00028219,2]
[322248828,1712913056571,-1124.57,0.00028219,2]
[322248829,1712913056580,-500.0,0.00028219,2]
[322248830,1712913056591,-500.0,0.00028219,2]
[322248831,1712913056604,-500.0,0.00028219,2]
[322248832,1712913056614,-500.0,0.00028219,2]
[322248833,1712913056625,-914.69,0.00028219,2]
[322248834,1712913056637,-925.11,0.00028219,2]
[322248835,1712913056647,-1311.53,0.00028219,2]
[322248836,1712913056657,-888.39,0.00028219,2]
[322248837,1712913056669,-500.0,0.00028219,2]
[322248838,1712913056679,-742.51,0.00028219,2]
[322248839,1712913056688,-500.0,0.00028219,2]
[322248840,1712913056698,-500.0,0.00028219,2]
[322248841,1712913056708,-500.0,0.00028219,2]
[322248842,1712913056718,-500.0,0.00028219,2]
[322248843,1712913056727,-1305.4,0.00028219,2]
[322248844,1712913056737,-1858.46,0.00028219,2]
[322248845,1712913056747,-844.56,0.00028219,2]
[322248846,1712913056757,-510.32,0.00028219,2]
[322248847,1712913056766,-500.0,0.00028219,2]
[322248848,1712913056776,-920.2,0.00028219,2]
[322248849,1712913056786,-500.0,0.00028219,2]
[322248850,1712913056796,-500.0,0.00028219,2]
[322248851,1712913056806,-1490.11,0.00028219,2]
[322248852,1712913056817,-500.0,0.00028219,2]
[322248853,1712913056828,-662.41,0.00028219,2]
[322248854,1712913056838,-500.0,0.00028219,2]
[322248855,1712913056848,-663.55,0.00028219,2]
[322248856,1712913056857,-500.0,0.00028219,2]
[322248857,1712913056866,-500.0,0.00028219,2]
[322248858,1712913056875,-688.0,0.00028219,2]
[322248859,1712913056885,-296.11704188,0.00028219,2]
[322248860,1712913056894,-4281.14,0.00028219,2]
[322248861,1712913056904,-500.0,0.00028219,2]
[322248862,1712913056913,-500.0,0.00028219,2]
[322248863,1712913056922,-500.0,0.00028219,2]
[322248864,1712913056933,-684.9,0.00028219,2]
[322248865,1712913056943,-21186.43478612,0.00028233,2]
[322248866,1712913056954,-1987.67716642,0.00028233,2]
[322248867,1712913056964,-310.30526955,0.00028233,2]
[322248868,1712913056974,-155.04246572,0.00028233,2]
[322248869,1712913056984,-153.82382248,0.00028258,2]
[322248870,1712913056994,-490.0,0.000283,2]
[322248871,1712913057004,-1683.0,0.000283,2]
[322248872,1712913057013,-150.0,0.00028331,2]
[322248873,1712913057024,-2108.672,0.00028331,2]
[322248874,1712913057033,-150.59820398,0.00028367,2]
[322248875,1712913057042,-150.0,0.000284,2]
[322248876,1712913057051,-166.41585679,0.00028401,2]
[322248877,1712913057060,-155.0,0.00028491,2]
[322248878,1712913057070,-210.17511032,0.00028491,2]
[322248879,1712913057079,-500.0,0.00028491,2]
[322248880,1712913057089,-326.67757,0.00028493,2]
[322248881,1712913057098,-419.74675316,0.00028493,2]
[322248882,1712913057107,-500.0,0.00028493,2]
[322248883,1712913057116,-500.0,0.00028493,2]
[322248884,1712913057126,-500.0,0.00028493,2]
[322248885,1712913057136,-500.0,0.00028493,2]
[322248886,1712913057146,-500.0,0.00028493,2]
[322248887,1712913057156,-500.0,0.00028493,2]
[322248888,1712913057167,-500.0,0.00028493,2]
[322248889,1712913057178,-500.0,0.00028493,2]
[322248890,1712913057189,-500.0,0.00028493,2]
[322248891,1712913057199,-500.0,0.00028493,2]
[322248892,1712913057209,-500.0,0.00028493,2]
[322248893,1712913057220,-500.0,0.00028493,2]
[322248894,1712913057230,-500.0,0.00028493,2]
[322248895,1712913057241,-500.0,0.00028493,2]
[322248896,1712913057251,-500.0,0.00028493,2]
[322248897,1712913057261,-500.0,0.00028493,2]
[322248898,1712913057271,-500.0,0.00028493,2]
[322248899,1712913057281,-602.30625515,0.00028493,2]
[322248900,1712913057292,-500.0,0.00028493,2]
[322248901,1712913057301,-373.45600169,0.00028493,2]
[322248902,1712913057312,-500.0,0.00028493,2]
[322248903,1712913057323,-286.84513901,0.00028493,2]
[322248904,1712913057333,-500.0,0.00028493,2]
[322248905,1712913057343,-500.0,0.00028493,2]
[322248906,1712913057354,-500.0,0.00028493,2]
[322248907,1712913057363,-500.0,0.00028493,2]
[322248908,1712913057372,-500.0,0.00028493,2]
[322248909,1712913057383,-500.0,0.00028493,2]
[322248910,1712913057394,-500.0,0.00028493,2]
[322248911,1712913057404,-500.0,0.00028493,2]
[322248912,1712913057415,-500.0,0.00028493,2]
[322248913,1712913057426,-500.0,0.00028493,2]
[322248914,1712913057437,-500.0,0.00028493,2]
[322248915,1712913057448,-500.0,0.00028493,2]
[322248916,1712913057458,-500.0,0.00028493,2]